fUSD/lending_fUSD_20240905
["ID","MTS","AMOUNT","RATE_DAILY","PERIOD"]
[337221548,1725507044696,-2057.25000025,0.00015,2]
[337221549,1725507044708,-918.3487726,0.00015,2]
[337221550,1725507044720,-567.63859501,0.00015,2]
[337221551,1725507044731,-22957.6,0.00015,2]
[337221552,1725507044742,-503.19150413,0.00015,2]
[337221553,1725507044754,-11367.3242289,0.00015,2]
[337221554,1725507044765,-215798.63479386,0.00015,2]
[337221555,1725507044775,-753.80079143,0.00015,2]
[337221556,1725507044785,-3533241.63828137,0.00015,2]
[337221557,1725507044795,-1363333.13474912,0.00015,2]
[337221558,1725507044835,-150.0,0.00014747,2]
[337221559,1725507044846,-150.0,0.00014764,2]
[337221560,1725507044856,-69.12270208,0.00014796,2]
[337221561,1725507044868,-80.87729792,0.00014796,2]
[337221562,1725507044879,-150.0,0.00014851,2]
[337221563,1725507044889,-150.0,0.00014912,2]
[337221564,1725507044899,-150.0,0.00014912,2]
[337221565,1725507044909,-597.18911563,0.00015,2]
[337221566,1725507044920,-912.45,0.00015,2]
[337221567,1725507044931,-814.55264413,0.00015,2]
[337221568,1725507044942,-841.5247125,0.00015,2]
[337221569,1725507044954,-367.69336575,0.00015,2]
[337221570,1725507044966,-928.89274016,0.00015,2]
[337221571,1725507044976,-821.406033,0.00015,2]
[337221572,1725507044987,-290.57000001,0.00015,2]
[337221573,1725507044999,-8632.87567252,0.00015,2]
[337221574,1725507045010,-6823.00001347,0.00015,2]
[337221578,1725507046224,-150.0,0.00014729,2]
[337221579,1725507046234,-150.0,0.00014729,2]
[337221580,1725507046244,-118.84953567,0.00014731,2]
[337221581,1725507046256,-31.15046433,0.00014731,2]
[337221582,1725507046266,-150.0,0.00014737,2]
[337221583,1725507046275,-150.0,0.00014746,2]
[337221584,1725507046285,-150.0,0.00014758,2]
[337221585,1725507046294,-150.0,0.00014766,2]
[337221586,1725507046303,-150.0,0.00014776,2]
[337221587,1725507046312,-150.0,0.0001478,2]
[337221588,1725507046321,-150.0,0.000148,2]
[337221589,1725507046331,-150.0,0.00014806,2]
[337221590,1725507046340,-150.0,0.00014806,2]
[337221591,1725507046349,-150.0,0.00014809,2]
[337221592,1725507046358,-142.39369433,0.00014814,2]
[337221593,1725507046370,-7.60630567,0.00014814,2]
[337221594,1725507046379,-150.0,0.0001483,2]
[337221595,1725507046389,-125.91089808,0.00014836,2]
[337221596,1725507046400,-24.08910192,0.00014836,2]
[337221597,1725507046409,-285.60823396,0.00014843,2]
[337221598,1725507046419,-150.0,0.00014849,2]
[337221599,1725507046428,-150.0,0.00014863,2]
[337221600,1725507046438,-150.0,0.00014875,2]
[337221601,1725507046447,-150.0,0.00014876,2]
[337221602,1725507046457,-150.0,0.0001489,2]
[337221603,1725507046467,-150.0,0.00014899,2]
[337221604,1725507046478,-136.66075861,0.00014933,2]
[337221605,1725507046517,-13.33924139,0.00014933,2]
[337221606,1725507046526,-150.0,0.00014939,2]
[337221607,1725507046536,-150.0,0.00014945,2]
[337221608,1725507046546,-150.0,0.00014948,2]
[337221610,1725507046555,-150.0,0.00014958,2]
[337221611,1725507046564,-150.0,0.0001498,2]
[337221612,1725507046573,-150.0,0.00014995,2]
[337221613,1725507046582,-7114.29718312,0.00015,2]
[337221614,1725507046736,-277.38,0.00015,2]
[337221615,1725507046748,-450.0,0.00015,2]
[337221616,1725507046759,-898.99522388,0.00015,2]
[337221617,1725507046771,-2009.13156047,0.00015,2]
[337221618,1725507046783,-277.21999955,0.00015,2]
[337221619,1725507046797,-46674.37652944,0.00015,2]
[337221620,1725507046811,-718.1047832,0.00015,2]
[337221621,1725507046823,-16762.83393366,0.00015,2]
[337221622,1725507046835,-361.43277495,0.00015,2]
[337221623,1725507046846,-1494.82037085,0.00015,2]
[337221624,1725507046858,-11282.35319939,0.00015,2]
[337221625,1725507046868,-2886.749998,0.00015,2]
[337221626,1725507046883,-670.60304978,0.00015,2]
[337221627,1725507046895,-37563.25821241,0.00015,2]
[337221628,1725507046913,-356.88365472,0.000129,2]
[337221629,1725507046926,-416.5696332,0.000129,2]
[337221630,1725507046939,-773.72014324,0.000129,2]
[337221631,1725507046951,-860.69903378,0.000129,2]
[337221632,1725507046960,-39.39096622,0.00015,2]
[337221633,1725507046971,-1222.58142477,0.00015,2]
[337221634,1725507046981,-631.37538617,0.00015,2]
[337221635,1725507046994,-2654.94895016,0.00015,2]
[337221636,1725507047005,-1086.53429537,0.00015,2]
[337221637,1725507047016,-3407.63288819,0.00015,2]
[337221638,1725507047027,-21827.46558801,0.00015,2]
[337221639,1725507047038,-311.66143271,0.00015,2]
[337221640,1725507047050,-991.62129739,0.00015,2]
[337221641,1725507047061,-2127.62018939,0.00015,2]
[337221642,1725507047071,-5966.55757461,0.00015,2]
[337221643,1725507047085,-7806.3,0.00015,2]
[337221644,1725507054567,550.0,0.00011,2]
[337221646,1725507226454,350.0,0.00012002,2]
[337221647,1725507286994,350.0,0.00012002,2]
[337221648,1725507379232,290.57,0.00010959,2]
[337221649,1725507457096,664.69213891,0.00014,120]
[337221650,1725507695645,666.38,0.00011785,2]
[337221651,1725507701982,428.14,0.00027,120]
[337221668,1725508232127,-600.0,0.00013,2]
[337221669,1725508232137,-250.0,0.00013635,2]
[337221670,1725508232146,-775.54718631,0.00013635,2]
[337221671,1725508232157,-1076.87281369,0.00013635,2]
[337221672,1725508232166,-300.0,0.00013648,2]
[337221673,1725508232175,-444.29,0.00013656,2]
[337221674,1725508232184,-8550.22012152,0.00013661,2]
[337221675,1725508232206,-3439.28301953,0.00013661,2]
[337221676,1725508232222,-311.83578179,0.00013661,2]
[337221677,1725508232237,-648.12882621,0.00013661,2]
[337221678,1725508232249,-1450.0,0.00013661,2]
[337221679,1725508232261,-397.7418011,0.00013661,2]
[337221680,1725508232271,-1029.07753147,0.00013661,2]
[337221681,1725508232283,-465.65120639,0.00013661,2]
[337221682,1725508232293,-619.14994573,0.00013661,2]
[337221683,1725508232305,-904.08234998,0.00013661,2]
[337221684,1725508232318,-479.4283729,0.00013661,2]
[337221685,1725508232329,-1072.71104338,0.00013661,2]
[337221686,1725508232339,-420.66,0.00013673,2]
[337221687,1725508232349,-1607.11,0.00013679,2]
[337221688,1725508232358,-1050.67,0.00013688,2]
[337221689,1725508232369,-250.0,0.00013695,2]
[337221690,1725508232378,-500.0,0.00013696,2]
[337221691,1725508232387,-150.0,0.00013699,2]
[337221692,1725508232397,-3383.74,0.00013699,2]
[337221693,1725508232407,-246.9247394,0.00013707,2]
[337221694,1725508232419,-3.0752606,0.00013707,2]
[337221695,1725508232428,-168.69,0.00013708,2]
[337221696,1725508232437,-499.99,0.00013708,2]
[337221698,1725508232446,-545.67,0.00013716,2]
[337221700,1725508232455,-1000.0,0.00013717,2]
[337221701,1725508232464,-326.54,0.00013717,2]
[337221703,1725508232473,-167.09,0.0001372,2]
[337221705,1725508232483,-175.01,0.00013815,2]
[337221707,1725508232492,-6085.11897219,0.00013816,2]
[337221710,1725508232505,-528.39973584,0.00013816,2]
[337221712,1725508232516,-287.25129197,0.00013816,2]
[337221713,1725508232525,-538.29120614,0.000139,5]
[337221715,1725508232537,-161.70879386,0.000139,5]
[337221716,1725508232547,-1400.0,0.00014,5]
[337221717,1725508232556,-666.38,0.00014048,2]
[337221718,1725508232565,-1060.6619167,0.000141,5]
[337221719,1725508232576,-1039.3380833,0.000141,5]
[337221720,1725508232586,-150.0,0.00014192,2]
[337221721,1725508232596,-150.0,0.000142,2]
[337221722,1725508232605,-350.78347236,0.000142,5]
[337221723,1725508232617,-320.66312088,0.000142,5]
[337221724,1725508232628,-2228.55340676,0.000142,5]
[337221725,1725508232638,-2230.40344222,0.000143,5]
[337221726,1725508232690,-1369.59655778,0.000143,5]
[337221727,1725508232699,-700.0,0.000144,5]
[337221728,1725508232709,-7185.0,0.00014463,7]
[337221729,1725508232718,-366.7,0.000145,2]
[337221730,1725508232727,-1000.00397245,0.000145,2]
[337221731,1725508232737,-430.42,0.000145,2]
[337221732,1725508232747,-301.53,0.000145,2]
[337221733,1725508232756,-303.37,0.000145,2]
[337221734,1725508232765,-359.6,0.000145,2]
[337221735,1725508232775,-500.0,0.000145,2]
[337221736,1725508232784,-700.0,0.000145,5]
[337221737,1725508232793,-700.0,0.000146,5]
[337221738,1725508232802,-1080.36312155,0.00014698,2]
[337221739,1725508232811,-700.0,0.000147,5]
[337221740,1725508232821,-150.0,0.00014729,2]
[337221741,1725508232830,-150.0,0.00014732,2]
[337221742,1725508232840,-150.0,0.00014733,2]
[337221743,1725508232849,-150.0,0.00014734,2]
[337221744,1725508232859,-150.0,0.00014741,2]
[337221745,1725508232869,-150.0,0.00014746,2]
[337221746,1725508232878,-150.0,0.00014755,2]
[337221747,1725508232887,-150.0,0.00014757,2]
[337221748,1725508232896,-150.0,0.00014758,2]
[337221749,1725508232905,-150.0,0.00014765,2]
[337221750,1725508232916,-150.0,0.00014772,2]
[337221751,1725508232925,-150.0,0.00014773,2]
[337221752,1725508232934,-150.0,0.00014774,2]
[337221753,1725508232943,-150.0,0.00014775,2]
[337221754,1725508232952,-1835.00006058,0.00014775,2]
[337221755,1725508232961,-150.0,0.00014778,2]
[337221756,1725508232970,-150.0,0.00014778,2]
[337221757,1725508232979,-150.0,0.00014779,2]
[337221758,1725508232988,-150.0,0.00014782,2]
[337221759,1725508232998,-152.0,0.00014792,3]
[337221760,1725508233008,-150.0,0.00014795,2]
[337221761,1725508233017,-150.0,0.00014795,2]
[337221762,1725508233027,-150.0,0.00014796,2]
[337221763,1725508233036,-150.0,0.00014797,2]
[337221764,1725508233046,-150.0,0.00014799,2]
[337221765,1725508233055,-150.0,0.00014799,2]
[337221766,1725508233065,-400.0,0.000148,4]
[337221767,1725508233074,-800.2358121,0.000148,2]
[337221768,1725508233083,-350.0,0.000148,2]
[337221769,1725508233093,-1000.0,0.000148,5]
[337221770,1725508233102,-150.0,0.00014801,2]
[337221771,1725508233112,-150.0,0.00014804,2]
[337221772,1725508233121,-150.0,0.00014807,2]
[337221773,1725508233130,-150.0,0.00014807,2]
[337221774,1725508233140,-150.0,0.00014813,2]
[337221775,1725508233149,-150.0,0.00014815,2]
[337221776,1725508233158,-150.0,0.00014819,2]
[337221777,1725508233168,-150.0,0.00014822,2]
[337221778,1725508233177,-150.0,0.00014822,2]
[337221779,1725508233187,-150.0,0.00014822,2]
[337221780,1725508233197,-150.0,0.00014825,2]
[337221781,1725508233206,-150.0,0.00014827,2]
[337221782,1725508233215,-150.0,0.00014829,2]
[337221783,1725508233224,-150.0,0.0001483,2]
[337221784,1725508233233,-150.0,0.00014832,2]
[337221785,1725508233244,-150.0,0.00014833,2]
[337221786,1725508233254,-150.0,0.00014836,2]
[337221787,1725508233263,-150.0,0.00014842,2]
[337221788,1725508233272,-625.855,0.00014845,2]
[337221789,1725508233281,-150.0,0.00014848,2]
[337221790,1725508233291,-150.0,0.00014848,2]
[337221791,1725508233300,-150.0,0.00014852,2]
[337221792,1725508233310,-150.0,0.00014856,2]
[337221793,1725508233322,-150.0,0.00014856,2]
[337221794,1725508233331,-150.0,0.00014869,2]
[337221795,1725508233341,-150.0,0.00014872,2]
[337221796,1725508233350,-150.0,0.00014875,2]
[337221797,1725508233360,-150.0,0.00014879,2]
[337221798,1725508233371,-150.0,0.0001488,2]
[337221799,1725508233380,-150.0,0.00014884,2]
[337221800,1725508233390,-150.0,0.00014886,2]
[337221801,1725508233400,-150.0,0.00014887,2]
[337221802,1725508233409,-150.0,0.00014887,2]
[337221803,1725508233419,-150.0,0.00014889,2]
[337221804,1725508233429,-1000.0,0.0001489,2]
[337221805,1725508233438,-850.169,0.0001489,2]
[337221806,1725508233449,-432.819,0.0001489,2]
[337221807,1725508233458,-150.0,0.00014893,2]
[337221808,1725508233468,-150.0,0.00014897,2]
[337221809,1725508233478,-150.0,0.00014897,2]
[337221810,1725508233488,-150.0,0.00014899,2]
[337221811,1725508233498,-3141.6547,0.000149,2]
[337221812,1725508233508,-746.3636,0.000149,2]
[337221813,1725508233518,-6031.2183,0.000149,2]
[337221814,1725508233527,-181.57844867,0.000149,2]
[337221815,1725508233537,-1693.8884924,0.000149,2]
[337221816,1725508233546,-1919.58422292,0.000149,2]
[337221817,1725508233556,-1015.0,0.000149,2]
[337221818,1725508233566,-497.63297992,0.000149,2]
[337221819,1725508233577,-150.0,0.00014902,2]
[337221820,1725508233587,-150.0,0.00014904,2]
[337221821,1725508233597,-150.0,0.00014914,2]
[337221822,1725508233606,-150.0,0.00014916,2]
[337221823,1725508233615,-150.0,0.00014918,2]
[337221824,1725508233625,-857.0,0.00014919,2]
[337221825,1725508233636,-150.0,0.00014919,2]
[337221826,1725508233646,-150.0,0.00014923,2]
[337221827,1725508233656,-150.0,0.00014929,2]
[337221828,1725508233666,-150.0,0.0001493,2]
[337221829,1725508233676,-150.0,0.0001493,2]
[337221830,1725508233685,-150.0,0.00014934,2]
[337221831,1725508233695,-150.0,0.00014934,2]
[337221832,1725508233704,-150.0,0.00014935,2]
[337221833,1725508233714,-150.0,0.00014935,2]
[337221834,1725508233723,-150.0,0.00014935,2]
[337221835,1725508233734,-150.0,0.00014937,2]
[337221836,1725508233745,-150.0,0.00014943,2]
[337221837,1725508233755,-150.0,0.00014943,2]
[337221838,1725508233764,-150.0,0.00014944,2]
[337221839,1725508233775,-150.0,0.00014945,2]
[337221840,1725508233784,-150.0,0.00014947,2]
[337221841,1725508233795,-150.0,0.00014949,2]
[337221842,1725508233805,-150.0,0.00014949,2]
[337221843,1725508233814,-150.0,0.00014955,2]
[337221844,1725508233825,-150.0,0.00014959,2]
[337221845,1725508233833,-150.0,0.00014959,2]
[337221846,1725508233844,-150.0,0.00014964,2]
[337221847,1725508233855,-150.0,0.00014964,2]
[337221848,1725508233865,-150.0,0.00014966,2]
[337221849,1725508233874,-150.0,0.00014969,2]
[337221850,1725508233883,-150.0,0.00014972,2]
[337221851,1725508233892,-500.0,0.00014973,2]
[337221852,1725508233901,-500.0,0.00014973,2]
[337221853,1725508233911,-502.14299937,0.00014973,2]
[337221854,1725508233921,-150.0,0.00014977,2]
[337221855,1725508233931,-150.0,0.00014978,2]
[337221856,1725508233941,-150.0,0.00014981,2]
[337221857,1725508233951,-150.0,0.00014984,2]
[337221858,1725508233960,-500.0,0.00014989,2]
[337221859,1725508233969,-150.0,0.00014989,2]
[337221860,1725508233978,-500.0,0.00014989,2]
[337221861,1725508233989,-1906.42720144,0.0001499,3]
[337221862,1725508233999,-5000.0,0.0001499,31]
[337221863,1725508234008,-150.0,0.0001499,2]
[337221864,1725508234018,-191.474759,0.0001499,2]
[337221865,1725508234027,-199.5706333,0.0001499,2]
[337221866,1725508234036,-207.6665077,0.0001499,2]
[337221867,1725508234046,-215.7623821,0.0001499,2]
[337221868,1725508234055,-223.8582564,0.0001499,2]
[337221869,1725508234065,-282.3021121,0.0001499,2]
[337221870,1725508234074,-293.6526254,0.0001499,2]
[337221871,1725508234083,-305.0031387,0.0001499,2]
[337221872,1725508234096,-316.353652,0.0001499,2]
[337221873,1725508234106,-327.7041653,0.0001499,2]
[337221874,1725508234115,-5005.7939095,0.0001499,2]
[337221875,1725508234125,-5174.4978098,0.0001499,2]
[337221876,1725508234134,-5343.2017101,0.0001499,2]
[337221877,1725508234143,-5511.9056104,0.0001499,2]
[337221878,1725508234152,-5680.6095107,0.0001499,2]
[337221879,1725508234162,-150.0,0.00014993,2]
[337221880,1725508234172,-150.0,0.00014993,2]
[337221881,1725508234181,-183.3788846,0.00014993,2]
[337221882,1725508234190,-270.9515988,0.00014993,2]
[337221883,1725508234200,-528.182231,0.00014999,2]
[337221884,1725508234209,-500.0,0.00014999,2]
[337221885,1725508234218,-500.0,0.00014999,2]
[337221886,1725508234227,-500.0,0.00014999,2]
[337221887,1725508234236,-500.0,0.00014999,2]
[337221888,1725508234245,-500.0,0.00014999,2]
[337221889,1725508234254,-500.0,0.00014999,2]
[337221890,1725508234264,-500.0,0.00014999,2]
[337221891,1725508234273,-500.0,0.00014999,2]
[337221892,1725508234282,-506.57891502,0.00014999,2]
[337221893,1725508234291,-500.0,0.00014999,2]
[337221894,1725508234300,-500.0,0.00014999,2]
[337221895,1725508234310,-500.0,0.00014999,2]
[337221896,1725508234319,-500.0,0.00014999,2]
[337221897,1725508234330,-500.0,0.00014999,2]
[337221898,1725508234339,-500.0,0.00014999,2]
[337221899,1725508234351,-500.0,0.00014999,2]
[337221900,1725508234360,-229.11124582,0.00014999,2]
[337221901,1725508234370,-79605.8174372,0.00015,2]
[337221902,1725508234382,-1922.41615197,0.00015,2]
[337221903,1725508234393,-37691.67610691,0.00015,2]
[337221904,1725508234418,-505.38615579,0.00015,2]
[337221906,1725508238241,-150.0,0.00014723,2]
[337221907,1725508238251,-150.0,0.00014727,2]
[337221908,1725508238260,-150.0,0.00014729,2]
[337221909,1725508238270,-150.0,0.00014731,2]
[337221910,1725508238279,-150.0,0.00014735,2]
[337221911,1725508238288,-150.0,0.00014742,2]
[337221912,1725508238298,-22.19252226,0.00014744,2]
[337221913,1725508238310,-127.80747774,0.00014744,2]
[337221914,1725508238321,-150.0,0.00014749,2]
[337221915,1725508238332,-35.7851635,0.00014749,2]
[337221916,1725508238343,-114.2148365,0.00014749,2]
[337221917,1725508238353,-150.0,0.0001475,2]
[337221918,1725508238363,-150.0,0.00014767,2]
[337221919,1725508238372,-150.0,0.00014767,2]
[337221920,1725508238381,-62.33287469,0.00014778,2]
[337221921,1725508238393,-87.66712531,0.00014778,2]
[337221922,1725508238403,-150.0,0.00014787,2]
[337221923,1725508238413,-150.0,0.00014798,2]
[337221924,1725508238423,-150.0,0.00014807,2]
[337221925,1725508238432,-150.0,0.00014808,2]
[337221926,1725508238441,-150.0,0.00014816,2]
[337221927,1725508238450,-150.0,0.00014819,2]
[337221928,1725508238459,-150.0,0.00014824,2]
[337221929,1725508238469,-150.0,0.00014827,2]
[337221930,1725508238480,-150.0,0.00014827,2]
[337221931,1725508238490,-150.0,0.00014845,2]
[337221932,1725508238499,-150.0,0.00014846,2]
[337221933,1725508238509,-150.0,0.00014848,2]
[337221934,1725508238518,-150.0,0.00014848,2]
[337221935,1725508238528,-150.0,0.00014857,2]
[337221936,1725508238537,-150.0,0.0001486,2]
[337221937,1725508238547,-150.0,0.00014863,2]
[337221938,1725508238556,-150.0,0.00014872,2]
[337221939,1725508238565,-150.0,0.00014884,2]
[337221940,1725508238575,-150.0,0.00014897,2]
[337221941,1725508238586,-150.0,0.00014897,2]
[337221942,1725508238597,-150.0,0.00014899,2]
[337221943,1725508238606,-150.0,0.00014902,2]
[337221944,1725508238617,-150.0,0.00014905,2]
[337221945,1725508238628,-150.0,0.00014916,2]
[337221946,1725508238640,-150.0,0.00014916,2]
[337221947,1725508238650,-150.0,0.00014919,2]
[337221948,1725508238664,-150.0,0.00014927,2]
[337221949,1725508238675,-150.0,0.00014933,2]
[337221950,1725508238686,-150.0,0.0001494,2]
[337221951,1725508238697,-150.0,0.00014941,2]
[337221952,1725508238707,-150.0,0.00014942,2]
[337221953,1725508238717,-150.0,0.00014959,2]
[337221954,1725508238727,-259.18878002,0.0001496,2]
[337221955,1725508238737,-150.0,0.00014973,2]
[337221956,1725508238747,-150.0,0.00014977,2]
[337221957,1725508238757,-150.0,0.00014978,2]
[337221958,1725508238767,-89.47873123,0.00014979,2]
[337221959,1725508238779,-60.52126877,0.00014979,2]
[337221960,1725508238788,-150.0,0.00014981,2]
[337221961,1725508238798,-1714.75028252,0.00015,2]
[337221962,1725508238810,-2756.36521699,0.00015,2]
[337221963,1725508238822,-289.2879445,0.00015,2]
[337221964,1725508238834,-1921.64848006,0.00015,2]
[337221966,1725508238847,-251.15994684,0.00015,2]
[337221968,1725508238859,-285883.11150595,0.00015,2]
[337221970,1725508238870,-66398.76349518,0.00015,2]
[337221972,1725508238882,-4204.82141487,0.00015,2]
[337221974,1725508238895,-1363.28313491,0.00015,2]
[337221976,1725508238905,-2076.34305428,0.00015,2]
[337221979,1725508238918,-394.14575585,0.00015,2]
[337221981,1725508238937,-2841.5102928,0.00015,2]
[337221984,1725508238948,-2939.34453431,0.00015,2]
[337221987,1725508238959,-12362.36622504,0.00015,2]
[337221989,1725508238974,-1982.0,0.00015,2]
[337221991,1725508238985,-2894.2789726,0.00015,2]
[337222019,1725508240130,-2136.98922558,0.00015,2]
[337222020,1725508240142,-576.99,0.00015,2]
[337222021,1725508240154,-54692.55398467,0.00015,2]
[337222022,1725508240184,-2924.41004049,0.00015,2]
[337222023,1725508240196,-27241.57039901,0.00015,2]
[337222024,1725508240209,-1608.91586877,0.00015,2]
[337222025,1725508240223,-656.66,0.00015,2]
[337222026,1725508240248,-621.10044249,0.00015,2]
[337222027,1725508240293,-33890.37994597,0.00015,2]
[337222028,1725508240302,-713.0,0.00015,2]
[337222029,1725508240312,-104646.13329299,0.00015,2]
[337222030,1725508240324,-2066136.57265791,0.00015,2]
[337222031,1725508240334,-516400.5285878,0.00015,2]
[337222032,1725508240420,-266.55649952,0.00015,2]
[337222033,1725508240459,-3023.29747064,0.00015,2]
[337222034,1725508240471,-8733.21413571,0.00015,2]
[337222035,1725508240483,-875.29934869,0.00015,2]
[337222036,1725508240494,-725.50538399,0.00015,2]
[337222054,1725508243227,-528.85885242,0.00012799,2]
[337222055,1725508243239,-120.26114758,0.00012799,2]
[337222056,1725508243249,-354.023187,0.00014049,2]
[337222057,1725508243258,-263.84713462,0.00015,2]
[337222059,1725508243648,-354.023187,0.00014225,2]
[337222060,1725508243657,-319165.29258452,0.00015,2]
[337222061,1725508243668,-10129.22854795,0.00015,2]
[337222062,1725508243679,-973199.44089195,0.00015,2]
[337222063,1725508243699,-747.85523931,0.00015,2]
[337222064,1725508243710,-580.5241446,0.00015,2]
[337222065,1725508243721,-1445.11600172,0.00015,2]
[337222066,1725508243732,-7724.67253932,0.00015,2]
[337222086,1725508246201,-354.023187,0.000144,2]
[337222087,1725508246211,-217.976813,0.00014576,2]
[337222088,1725508246223,-136.046374,0.00014576,2]
[337222090,1725508246233,-208.803343,0.00014752,2]
[337222092,1725508246246,-145.219844,0.00014752,2]
[337222094,1725508246255,-812.300156,0.00015,2]
[337222096,1725508246266,-16111.50349894,0.00015,2]
[337222098,1725508246278,-371.88291753,0.00015,2]
[337222100,1725508246289,-1324.8,0.00015,2]
[337222102,1725508246304,-1433.13730044,0.00015,2]
[337222103,1725508246317,-611.967,0.00015,2]
[337222104,1725508246416,-535.20839645,0.00015,2]
[337222105,1725508246427,-25773.32341151,0.00015,2]
[337222106,1725508246439,-298.66236919,0.00015,2]
[337222107,1725508246455,-335025.25171471,0.00015,2]
[337222108,1725508406148,160.29,0.00010959,2]
[337222109,1725508867817,550.0,0.00011,2]
[337222110,1725508889753,658.26,0.00011716,2]
[337222111,1725509175418,383.41,0.00010959,2]
[337222112,1725509386957,642.68,0.00011622,2]
[337222114,1725509432213,-600.0,0.00013,2]
[337222115,1725509432223,-155.85555883,0.00013488,2]
[337222116,1725509432232,-10781.6,0.0001354,2]
[337222117,1725509432241,-795.0,0.00013549,2]
[337222118,1725509432250,-500.0,0.00013555,2]
[337222119,1725509432259,-250.0,0.00013584,2]
[337222120,1725509432268,-273.22,0.00013598,2]
[337222121,1725509432277,-200.0,0.000136,2]
[337222122,1725509432289,-250.0,0.000136,2]
[337222123,1725509432305,-23880.0,0.00013613,2]
[337222124,1725509432315,-997.3,0.00013614,2]
[337222125,1725509432325,-499.99,0.00013614,2]
[337222126,1725509432334,-250.0,0.00013622,2]
[337222127,1725509432343,-7487.24,0.00013624,2]
[337222128,1725509432353,-3639.84,0.00013627,2]
[337222129,1725509432362,-2595.43,0.00013636,2]
[337222130,1725509432371,-649.76,0.00013636,2]
[337222131,1725509432380,-585.79,0.00013643,2]
[337222132,1725509432389,-6605.18035398,0.00013644,2]
[337222133,1725509432398,-150.0,0.00013646,2]
[337222134,1725509432407,-183.64,0.00013647,2]
[337222135,1725509432415,-168.69,0.00013654,2]
[337222136,1725509432424,-2320.49,0.00013654,2]
[337222137,1725509432433,-1500.0,0.00013672,2]
[337222138,1725509432442,-173.27,0.00013682,2]
[337222139,1725509432451,-1000.0,0.00013754,2]
[337222140,1725509432460,-152.86,0.00013771,2]
[337222141,1725509432469,-163.28,0.00013857,2]
[337222142,1725509432479,-642.68,0.00013886,2]
[337222143,1725509432488,-300.0,0.000139,5]
[337222144,1725509432497,-600.0,0.00014,5]
[337222145,1725509432506,-421.34,0.00014055,2]
[337222146,1725509432515,-1000.0,0.000141,5]
[337222147,1725509432524,-422.04,0.00014141,2]
[337222149,1725509432535,-422.04,0.00014141,2]
[337222150,1725509432544,-422.04,0.00014141,2]
[337222151,1725509432552,-422.04,0.00014141,2]
[337222152,1725509432562,-150.0,0.00014192,2]
[337222153,1725509432571,-150.0,0.00014192,2]
[337222154,1725509432580,-150.0,0.00014192,2]
[337222155,1725509432588,-150.0,0.00014192,2]
[337222156,1725509432598,-150.0,0.00014192,2]
[337222157,1725509432606,-150.0,0.00014192,2]
[337222158,1725509432615,-150.0,0.00014192,2]
[337222159,1725509432625,-150.0,0.00014192,2]
[337222160,1725509432635,-150.0,0.00014192,2]
[337222161,1725509432645,-1300.0,0.000142,5]
[337222162,1725509432655,-1700.0,0.000143,5]
[337222163,1725509432664,-300.0,0.000144,5]
[337222164,1725509432674,-152.86,0.0001446,2]
[337222165,1725509432682,-300.0,0.000145,5]
[337222166,1725509432691,-1915.293,0.00014517,2]